Workbook

Sheet Principal
B1: Estudio de una obra de toma | L1: =B1 -> Estudio de una obra de toma | U1: Para utilizar este libro correctamente es necesario tener habilitadas las macros de Visual Basic
A3: Tema: | B3: Canales: Curvas de Köch | K3: Tema: | L3: =B3 -> Canales: Curvas de Köch | U3: Excel 2010:
A4: Autor: | B4: Jaime García Palacios | H4: Alumno: | K4: Autor: | L4: Jaime García Palacios | R4: Alumno: | S4: =IF(I4=0,"",I4) ->  | V4: Archivo | X4: Opciones | Z4: Centro de Confianza
V5: Botón de configuración del centro de confianza
A6: Enunciado | H6: (Asegurarse de habilitar las macros) | V6: Deshabilitar todas las macros con notificación | AA6: (Habilitarlas al abrir este libro)
A8: ="Un canal rectangular indefinido, de b=" & G17 & " m de ancho con pendiente I0=" & G18 & " conecta con un depósito con un vertedero a la cota " & G20 & " m cuyo nivel de agua se sitúa a la cota " & G21 & " m. Suponiendo un número de Manning n=" & G19 & ". Calcular:" -> Un canal rectangular indefinido, de b=6 m de ancho con pendiente I0=0,0003 conecta con un depósito con un vertedero a la cota 199 m cuyo nivel de agua se sitúa a la cota 200 m. Suponiendo un número de Manning n=0,015. Calcular:
A9: 1.- Energía espécifica
A10: 2.- Calado crítico correspondiente a esa curva de energía específica
A11: 3.- Curva de los calados uniformes asociados a los distintos caudales de salida
A12: 4.- Cuadal de salida y calado uniforme asociado en el canal
A13: 5.- Integrar la curva de remanso, en caso de existir
A15: Datos del problema
A17: Ancho del canal | F17: b | G17: 6 | H17: m
A18: Pendiente del canal | F18: I0 | G18: 0.0003 | H18: -
A19: Nº de Manning | F19: n | G19: 0.015
A20: Cota del labio del vertedero | F20: zv | G20: 199 | H20: m
A21: Cota de la lámina de agua en el depósito | F21: z0 | G21: 200 | H21: m
A22: Densidad del agua | F22: ro | G22: 1000 | H22: kg/m3
A23: Gravedad de la tierra | F23: g | G23: 9.81 | H23: m/s2
A25: Resultados
A27: Peso específico del agua | F27: gama | G27: =G22*G23 -> 9810 | H27: N/m3
A29: Energía específica constante en toda la curva | F29: Hº | G29: =G21-G20 -> 1 | H29: m
A30: Calado crítico en el canal | F30: yc | G30: =2/3*G29 -> 0.6666666667 | H30: m
A31: Caudal máximo de salida | F31: Qyc | G31: =SQRT((G29-G30)*2*G23)*G17*G30 -> 10.22936948 | H31: m3/s
A32: Solución de la ecuación no lineal del corte | F32: ycorte | G32: =miykoch(G29,G17,G19,G18) ->  | H32: m
A33: Caudal correspondiente al punto de corte | F33: Qcorte | G33: =SQRT((G29-G32)*2*G23)*G17*G32 ->  | H33: m3/s
A34: Tipo de régimen en el canal | F34: Régimen | G34: =IF(G32<G30,"Rápido","Lento") ->  | H34: -
A35: Calado de salida por el vertedero | F35: ysal | G35: =MAX(G30,G32) ->  | H35: m
A36: Caudal de salida por el vertedero | F36: Qsal | G36: =IF(G32<G30,G31,G33) ->  | H36: m3/s
A37: Pendiente del canal para el caudal de salida | F37: Pendiente | G37: =IF(G34="Rápido","Fuerte","Suave") ->  | H37: -
A38: Calado unitario en el canal | F38: q | G38: =G36/G17 ->  | H38: m3/(s·m)
A39: Calado crítico en el canal | F39: yc | G39: =(G38^2/G23)^(1/3) ->  | H39: m
A40: Calado uniforme en el canal | F40: yu | G40: =miyuniforme(G36,G17,G19,G18) ->  | H40: m
A41: Velocidad para calado uniforme | F41: v | G41: =G36/G17/G40 ->  | H41: m
A42: Número de froude al cuadrado | F42: F2 | G42: =G41^2/G23/G40 ->  | H42: -
A43: Número de Froude | F43: F | G43: =SQRT(G42) ->  | H43: -
A44: Curva de remanso para alcanzar el uniforme | F44: tipo | G44: =IF(G32<G30,"F2","No hay") -> 
A45: Incremento de calado en la curva de Köch | F45: Dy | G45: =G29/40 -> 0.025 | H45: m
A47: Datos para el gráfico
A49: Curva de Koch | D49: Cuva remanso F2 | F49: =IF(G44="F2",G44,"") ->  | G49: Solución del corte
A50: y | B50: Q (Köch) | C50: Q (unifor.) | D50: x | E50: y | F50: Cota y | G50: x | H50: yu1= | I50: yu1=
A51: =0 -> 0 | B51: =SQRT(($G$29-A51)*2*$G$23)*$G$17*A51 -> 0 | C51: =SQRT($G$18)/$G$19*($G$17*A51)^(5/3)/($G$17+2*A51)^(2/3) -> 0 | D51: ='CurvaRemanso F2'!K12 -> 0 | E51: ='CurvaRemanso F2'!A12 ->  | F51: =E51-D51*$G$18+$G$20 ->  | G51: 0 | H51: =G32 ->  | I51: =G32+G20 -> 
A52: =A51+$G$45 -> 0.025 | B52: =SQRT(($G$29-A52)*2*$G$23)*$G$17*A52 -> 0.656059258 | C52: =SQRT($G$18)/$G$19*($G$17*A52)^(5/3)/($G$17+2*A52)^(2/3) -> 0.01472712197 | D52: ='CurvaRemanso F2'!K13 -> 0 | E52: ='CurvaRemanso F2'!A13 ->  | F52: =E52-D52*$G$18+$G$20 ->  | G52: =G33 ->  | H52: =G32 ->  | I52: =I51 -> 
A53: 0.05 | B53: 1.295187245 | C53: 0.04649985188 | D53: ='CurvaRemanso F2'!K14 -> 0 | E53: ='CurvaRemanso F2'!A14 ->  | G53: =G33 ->  | H53: 0 | I53: =G20 -> 199
A54: 0.075 | B54: 1.917047535 | C54: 0.09090200883 | D54: ='CurvaRemanso F2'!K15 -> 0 | E54: ='CurvaRemanso F2'!A15 ->  | G54: Régimen crítico
A55: 0.1 | B55: 2.521285386 | C55: 0.1460361335 | D55: ='CurvaRemanso F2'!K16 -> 0 | E55: ='CurvaRemanso F2'!A16 ->  | G55: x | H55: yc1= | I55: yc1=
A56: 0.125 | B56: 3.107526146 | C56: 0.2106936576 | D56: ='CurvaRemanso F2'!K17 -> 0 | E56: ='CurvaRemanso F2'!A17 ->  | G56: 0 | H56: =G30 -> 0.6666666667 | I56: =H56+$G$20 -> 199.6666667
A57: 0.15 | B57: 3.67537345 | C57: 0.2839966286 | D57: ='CurvaRemanso F2'!K18 -> 0 | E57: ='CurvaRemanso F2'!A18 ->  | G57: =G31 -> 10.22936948 | H57: =G30 -> 0.6666666667 | I57: =H57+$G$20 -> 199.6666667
A58: 0.175 | B58: 4.224407207 | C58: 0.3652602258 | D58: ='CurvaRemanso F2'!K19 -> 0 | E58: ='CurvaRemanso F2'!A19 ->  | G58: =G31 -> 10.22936948 | H58: 0 | I58: 199
A59: 0.2 | B59: 4.754181318 | C59: 0.4539257248 | D59: ='CurvaRemanso F2'!K20 -> 0 | E59: ='CurvaRemanso F2'!A20 -> 
A60: 0.225 | B60: 5.264221096 | C60: 0.5495229558 | D60: ='CurvaRemanso F2'!K21 -> 0 | E60: ='CurvaRemanso F2'!A21 ->  | H60: Contorno
A61: 0.25 | B61: 5.754020334 | C61: 0.6516472432 | D61: ='CurvaRemanso F2'!K22 -> 0 | E61: ='CurvaRemanso F2'!A22 ->  | H61: x | I61: y
A62: 0.275 | B62: 6.223037944 | C62: 0.7599442652 | D62: ='CurvaRemanso F2'!K23 -> 0 | E62: ='CurvaRemanso F2'!A23 ->  | H62: =-H65/5 -> -4 | I62: =G20-G21+G20 -> 198
A63: 0.3 | B63: 6.670694117 | C63: 0.8740995965 | D63: ='CurvaRemanso F2'!K24 -> 0 | E63: ='CurvaRemanso F2'!A24 ->  | H63: 0 | I63: =I62 -> 198
A64: 0.325 | B64: 7.096365883 | C64: 0.9938311931 | D64: ='CurvaRemanso F2'!K25 -> 0 | E64: ='CurvaRemanso F2'!A25 ->  | H64: 0 | I64: =G20 -> 199
A65: 0.35 | B65: 7.499381975 | C65: 1.118883813 | D65: ='CurvaRemanso F2'!K26 -> 0 | E65: ='CurvaRemanso F2'!A26 ->  | H65: =MAX(D91,20) -> 20 | I65: =-H65*G18+G20 -> 198.994
A66: 0.375 | B66: 7.879016833 | C66: 1.249024766 | D66: ='CurvaRemanso F2'!K27 -> 0 | E66: ='CurvaRemanso F2'!A27 -> 
A67: 0.4 | B67: 8.23448359 | C67: 1.384040598 | D67: ='CurvaRemanso F2'!K28 -> 0 | E67: ='CurvaRemanso F2'!A28 ->  | H67: Agua depósito
A68: 0.425 | B68: 8.564925788 | C68: 1.523734455 | D68: ='CurvaRemanso F2'!K29 -> 0 | E68: ='CurvaRemanso F2'!A29 ->  | H68: x | I68: y
A69: 0.45 | B69: 8.869407534 | C69: 1.667923962 | D69: ='CurvaRemanso F2'!K30 -> 0 | E69: ='CurvaRemanso F2'!A30 ->  | H69: =H62 -> -4 | I69: =G21 -> 200
A70: 0.475 | B70: 9.14690173 | C70: 1.816439477 | D70: ='CurvaRemanso F2'!K31 -> 0 | E70: ='CurvaRemanso F2'!A31 ->  | H70: =0.8*$H$62 -> -3.2 | I70: =I69 -> 200
A71: 0.5 | B71: 9.396275858 | C71: 1.969122643 | D71: ='CurvaRemanso F2'!K32 -> 0 | E71: ='CurvaRemanso F2'!A32 ->  | H71: =0.7*$H$62 -> -2.8 | I71: =I70-0.05*$K$75 -> 
A72: 0.525 | B72: 9.616274681 | C72: 2.125825179 | D72: ='CurvaRemanso F2'!K33 -> 0 | E72: ='CurvaRemanso F2'!A33 ->  | H72: =0.5*$H$62 -> -2 | I72: =I71-0.1*$K$75 -> 
A73: 0.55 | B73: 9.805498967 | C73: 2.286407849 | D73: ='CurvaRemanso F2'!K34 -> 0 | E73: ='CurvaRemanso F2'!A34 ->  | H73: =0.4*$H$62 -> -1.6 | I73: =I72-0.1*$K$75 -> 
A74: 0.575 | B74: 9.962379046 | C74: 2.450739584 | D74: ='CurvaRemanso F2'!K35 -> 0 | E74: ='CurvaRemanso F2'!A35 ->  | H74: =0.2*$H$62 -> -0.8 | I74: =(I70+I75)/2 -> 
A75: 0.6 | B75: 10.08514155 | C75: 2.618696726 | D75: ='CurvaRemanso F2'!K36 -> 0 | E75: ='CurvaRemanso F2'!A36 ->  | H75: 0 | I75: =MAX(G39:G40)+G20 ->  | K75: =I69-I75 -> 
A76: 0.625 | B76: 10.17176699 | C76: 2.790162367 | D76: ='CurvaRemanso F2'!K37 -> 0 | E76: ='CurvaRemanso F2'!A37 ->  | H76: Régimen crítico
A77: 0.65 | B77: 10.21993493 | C77: 2.965025777 | D77: ='CurvaRemanso F2'!K38 -> 0 | E77: ='CurvaRemanso F2'!A38 ->  | H77: x | I77: ="yc="& TEXT(G39,"0.000") -> 
A78: 0.675 | B78: 10.22695171 | C78: 3.143181895 | D78: ='CurvaRemanso F2'!K39 -> 0 | E78: ='CurvaRemanso F2'!A39 ->  | H78: 0 | I78: =G39+$G$20 -> 
A79: 0.7 | B79: 10.18965358 | C79: 3.324530889 | D79: ='CurvaRemanso F2'!K40 -> 0 | E79: ='CurvaRemanso F2'!A40 ->  | H79: =H65 -> 20 | I79: =I65+G39 -> 
A80: 0.725 | B80: 10.10427379 | C80: 3.508977753 | D80: ='CurvaRemanso F2'!K41 -> 0 | E80: ='CurvaRemanso F2'!A41 ->  | H80: Régimen uniforme
A81: 0.75 | B81: 9.966255566 | C81: 3.696431952 | D81: ='CurvaRemanso F2'!K42 -> 0 | E81: ='CurvaRemanso F2'!A42 ->  | H81: x | I81: ="yu="& TEXT(G40,"0.000") -> 
A82: 0.775 | B82: 9.769980873 | C82: 3.886807112 | D82: ='CurvaRemanso F2'!K43 -> 0 | E82: ='CurvaRemanso F2'!A43 ->  | H82: 0 | I82: =G40+$G$20 -> 
A83: 0.8 | B83: 9.508362635 | C83: 4.080020724 | D83: ='CurvaRemanso F2'!K44 -> 0 | E83: ='CurvaRemanso F2'!A44 ->  | H83: =H65 -> 20 | I83: =I65+G40 -> 
A84: 0.825 | B84: 9.172204411 | C84: 4.275993894 | D84: ='CurvaRemanso F2'!K45 -> 0 | E84: ='CurvaRemanso F2'!A45 -> 
A85: 0.85 | B85: 8.749138815 | C85: 4.474651104 | D85: ='CurvaRemanso F2'!K46 -> 0 | E85: ='CurvaRemanso F2'!A46 -> 
A86: 0.875 | B86: 8.221741376 | C86: 4.675920001 | D86: ='CurvaRemanso F2'!K47 -> 0 | E86: ='CurvaRemanso F2'!A47 -> 
A87: 0.9 | B87: 7.563856159 | C87: 4.8797312 | D87: ='CurvaRemanso F2'!K48 -> 0 | E87: ='CurvaRemanso F2'!A48 -> 
A88: 0.925 | B88: 6.732449684 | C88: 5.086018111 | D88: ='CurvaRemanso F2'!K49 -> 0 | E88: ='CurvaRemanso F2'!A49 -> 
A89: 0.95 | B89: 5.645590315 | C89: 5.294716772 | D89: ='CurvaRemanso F2'!K50 -> 0 | E89: ='CurvaRemanso F2'!A50 -> 
A90: 0.975 | B90: 4.097088753 | C90: 5.505765702 | D90: ='CurvaRemanso F2'!K51 -> 0 | E90: ='CurvaRemanso F2'!A51 -> 
A91: 1 | C91: 5.719105758 | D91: =IF('CurvaRemanso F2'!K52<>0,'CurvaRemanso F2'!K52,20) -> 20 | E91: ='CurvaRemanso F2'!A52 -> 
A94: 1.9535 | B94: =SQRT(($G$29-A94)*2*$G$23)*$G$17*A94 ->  | C94: =CurvaRemansoS1!K52 -> 0

Sheet CurvaRemanso F2
A1: ="Curva " & M8 -> 
R2: Pendienes | S2: Curvas | V2: Limites | X2: x | Y2: yc | Z2: yu
A3: Ancho del canal rectángular | E3: b | F3: =Principal!G17 -> 6 | G3: m | I3: Densidad del agua | L3: ro | M3: =Principal!G22 -> 1000 | N3: kg/m3 | R3: Suave | S3: S1 | T3: S2 | U3: S3 | V3: =IFERROR(LOOKUP(M8,S3:U3,S6:U6),LOOKUP(M8,S5:U5,S8:U8)) ->  | X3: =O12 -> 0 | Y3: =M5 ->  | Z3: =M6 -> 
A4: Caudal circulante por el canal | E4: Q | F4: =Principal!G36 ->  | G4: m3/s | I4: Gravedad de la tierra | L4: g | M4: =Principal!G23 -> 9.81 | N4: m/s | R4: Crítica | S4: F1 | T4: F2 | U4: F3 | V4: =IFERROR(LOOKUP(M8,S3:U3,S7:U7),LOOKUP(M8,S5:U5,S9:U9)) ->  | X4: =O52 -> 0 | Y4: =M5 ->  | Z4: =M6 -> 
A5: Número de Manning | E5: n | F5: =Principal!G19 -> 0.015 | I5: Calado crítico | L5: yc | M5: =(($F$4/$F$3)^2/$M$4)^(1/3) ->  | N5: m | R5: Fuerte | S5: F1 | T5: F2 | U5: F3
A6: Pendiente geométrica canal | E6: I0 | F6: =Principal!G18 -> 0.0003 | G6: - | I6: Calado uniforme | L6: yu | M6: =miyuniforme(F4,F3,F5,F6) ->  | N6: m | R6: Suave | S6: =M6 ->  | T6: =M6 ->  | U6: =M5 -> 
A7: Calado Y al comienzo de la curva | E7: yini | F7: =IF(Principal!G44="F2",Principal!G39,Principal!G40) ->  | G7: m | I7: Pendiente | L7: Pend | M7: =IF(M6>M5, R3, IF(M6=M5, R4, R5)) ->  | N7: - | R7: signo | S7: 1 | T7: -1 | U7: -1
A8: Calado Y al final de la curva | E8: yfin | F8: =Principal!G40 ->  | G8: m | I8: Tipo de curva de remanso | L8: Curva | M8: =IF(M7=R3,IF(F7>M6,S3,IF(F7<M5,U3,T3)),IF(M7=R5,IF(F7>M5,S5,IF(F7<M6,U5,T5)),"No hay")) ->  | N8: - | R8: Fuerte | S8: =M5 ->  | T8: =M6 ->  | U8: =M6 -> 
A9: Coordenada x para inicio de la curva | E9: xini | F9: 0 | G9: m | I9: Incremento del intervalo en Y | L9: Incy | M9: =(F8-F7)/40 ->  | N9: m | R9: signo | S9: 1 | T9: 1 | U9: -1
A10: Calado | B10: Perímetro mojado | C10: Superficie mojada | D10: Radio hidráulico | E10: velocidad | F10: Energía específica | G10: Pendiente de pérdidas | H10: Incremento energía específica | I10: Pendiente de pérdidas media | J10: Incremento en x | K10: X acumulada | L10: Número de Froude al cuadrado | M10: Calado conjugado | N10: Impulsión | O10: x para dibujo
A11: y | B11: p | C11: S | D11: Rh | E11: v | F11: H0 | G11: I | H11: DH0 | I11: Im | J11: Dx | K11: x | L11: F2 | M11: Yc | N11: N | O11: Xdib
A12: =F7 ->  | B12: =$F$3+2*A12 ->  | C12: =$F$3*A12 ->  | D12: =C12/B12 ->  | E12: =$F$4/C12 ->  | F12: =A12+E12^2/2/$M$4 ->  | G12: =$F$5^2*E12^2/D12^(4/3) ->  | H12: H1-H2 | I12: (I1+I2)/2 | J12: (H1-H2)/(Im-I0) | L12: =E12^2/$M$4/A12 ->  | M12: =A12/2*(SQRT(1+8*L12)-1) ->  | N12: =$M$3*$F$4*E12+$F$3*$M$3*$M$4*A12^2/2 ->  | O12: =$F$9+K12 -> 0
A13: =A12+$M$9 ->  | D13: =C13/B13 ->  | F13: =A13+E13^2/2/$M$4 ->  | G13: =$F$5^2*E13^2/D13^(4/3) ->  | H13: =F12-F13 ->  | I13: =(G12+G13)/2 ->  | J13: =IFERROR(H13/(I13-$F$6),0) -> 0 | K13: =J13+K12 -> 0 | O13: =$F$9+K13 -> 0
D14: =C14/B14 ->  | G14: =$F$5^2*E14^2/D14^(4/3) ->  | H14: =F13-F14 ->  | I14: =(G13+G14)/2 ->  | J14: =IFERROR(H14/(I14-$F$6),0) -> 0 | K14: =J14+K13 -> 0 | O14: =$F$9+K14 -> 0
G15: =$F$5^2*E15^2/D15^(4/3) ->  | I15: =(G14+G15)/2 ->  | J15: 0 | K15: =J15+K14 -> 0 | O15: 0
J16: 0 | K16: 0 | O16: 0
J17: 0 | K17: 0 | O17: 0
J18: 0 | K18: 0 | O18: 0
J19: 0 | K19: 0 | O19: 0
G20: =$F$5^2*E20^2/D20^(4/3) ->  | H20: =F19-F20 ->  | I20: =(G19+G20)/2 ->  | J20: 0 | K20: 0 | O20: 0
J21: 0 | K21: 0 | O21: 0
J22: 0 | K22: 0 | O22: 0
J23: 0 | K23: 0 | O23: 0
F24: =A24+E24^2/2/$M$4 ->  | J24: 0 | K24: 0 | M24: =A24/2*(SQRT(1+8*L24)-1) ->  | O24: 0
F25: =A25+E25^2/2/$M$4 ->  | J25: 0 | K25: 0 | O25: 0
J26: 0 | K26: 0 | O26: 0
J27: 0 | K27: 0 | O27: 0
J28: 0 | K28: 0 | O28: 0
J29: 0 | K29: 0 | O29: 0
J30: 0 | K30: 0 | O30: 0
J31: 0 | K31: 0 | O31: 0
J32: 0 | K32: 0 | O32: 0
J33: 0 | K33: 0 | O33: 0
J34: 0 | K34: 0 | O34: 0
J35: 0 | K35: 0 | O35: 0
J36: 0 | K36: 0 | O36: 0
J37: 0 | K37: 0 | O37: 0
J38: 0 | K38: 0 | O38: 0
J39: 0 | K39: 0 | O39: 0
J40: 0 | K40: 0 | O40: 0
J41: 0 | K41: 0 | O41: 0
J42: 0 | K42: 0 | O42: 0
J43: 0 | K43: 0 | O43: 0
J44: 0 | K44: 0 | O44: 0
J45: 0 | K45: 0 | O45: 0
J46: 0 | K46: 0 | O46: 0
J47: 0 | K47: 0 | O47: 0
J48: 0 | K48: 0 | O48: 0
J49: 0 | K49: 0 | O49: 0
J50: 0 | K50: 0 | O50: 0
J51: 0 | K51: 0 | O51: 0
J52: 0 | K52: 0 | O52: 0

Sheet CurvaRemansoS1
A1: ="Curva " & M8 -> 
R2: Pendienes | S2: Curvas | V2: Limites | X2: x | Y2: yc | Z2: yu
A3: Ancho del canal rectángular | E3: b | F3: =Principal!G17 -> 6 | G3: m | I3: Densidad del agua | L3: ro | M3: =Principal!G22 -> 1000 | N3: kg/m3 | R3: Suave | S3: S1 | T3: S2 | U3: S3 | V3: =IFERROR(LOOKUP(M8,S3:U3,S6:U6),LOOKUP(M8,S5:U5,S8:U8)) ->  | X3: =O12 -> 0 | Y3: =M5 ->  | Z3: =M6 -> 
A4: Caudal circulante por el canal | E4: Q | F4: =Principal!B94 ->  | G4: m3/s | I4: Gravedad de la tierra | L4: g | M4: =Principal!G23 -> 9.81 | N4: m/s | R4: Crítica | S4: F1 | T4: F2 | U4: F3 | V4: =IFERROR(LOOKUP(M8,S3:U3,S7:U7),LOOKUP(M8,S5:U5,S9:U9)) ->  | X4: =O52 -> 0 | Y4: =M5 ->  | Z4: =M6 -> 
A5: Número de Manning | E5: n | F5: =Principal!G19 -> 0.015 | I5: Calado crítico | L5: yc | M5: =(($F$4/$F$3)^2/$M$4)^(1/3) ->  | N5: m | R5: Fuerte | S5: F1 | T5: F2 | U5: F3
A6: Pendiente geométrica canal | E6: I0 | F6: =Principal!G18 -> 0.0003 | G6: - | I6: Calado uniforme | L6: yu | M6: =miyuniforme(F4,F3,F5,F6) ->  | N6: m | R6: Suave | S6: =M6 ->  | T6: =M6 ->  | U6: =M5 -> 
A7: Calado Y al comienzo de la curva | E7: yini | F7: 2.5 | G7: m | I7: Pendiente | L7: Pend | M7: =IF(M6>M5, R3, IF(M6=M5, R4, R5)) ->  | N7: - | R7: signo | S7: 1 | T7: -1 | U7: -1
A8: Calado Y al final de la curva | E8: yfin | F8: =Principal!A94 -> 1.9535 | G8: m | I8: Tipo de curva de remanso | L8: Curva | M8: =IF(M7=R3,IF(F7>M6,S3,IF(F7<M5,U3,T3)),IF(M7=R5,IF(F7>M5,S5,IF(F7<M6,U5,T5)),"No hay")) ->  | N8: - | R8: Fuerte | S8: =M5 ->  | T8: =M6 ->  | U8: =M6 -> 
A9: Coordenada x para inicio de la curva | E9: xini | F9: 0 | G9: m | I9: Incremento del intervalo en Y | L9: Incy | M9: =(F8-F7)/40 -> -0.0136625 | N9: m | R9: signo | S9: 1 | T9: 1 | U9: -1
A10: Calado | B10: Perímetro mojado | C10: Superficie mojada | D10: Radio hidráulico | E10: velocidad | F10: Energía específica | G10: Pendiente de pérdidas | H10: Incremento energía específica | I10: Pendiente de pérdidas media | J10: Incremento en x | K10: X acumulada | L10: Número de Froude al cuadrado | M10: Calado conjugado | N10: Impulsión | O10: x para dibujo
A11: y | B11: p | C11: S | D11: Rh | E11: v | F11: H0 | G11: I | H11: DH0 | I11: Im | J11: Dx | K11: x | L11: F2 | M11: Yc | N11: N | O11: Xdib
A12: =F7 -> 2.5 | B12: =$F$3+2*A12 -> 11 | C12: =$F$3*A12 -> 15 | D12: =C12/B12 -> 1.363636364 | E12: =$F$4/C12 ->  | F12: =A12+E12^2/2/$M$4 ->  | G12: =$F$5^2*E12^2/D12^(4/3) ->  | H12: H1-H2 | I12: (I1+I2)/2 | J12: (H1-H2)/(Im-I0) | L12: =E12^2/$M$4/A12 ->  | M12: =A12/2*(SQRT(1+8*L12)-1) ->  | N12: =$M$3*$F$4*E12+$F$3*$M$3*$M$4*A12^2/2 ->  | O12: =$F$9+K12 -> 0
A13: =A12+$M$9 -> 2.4863375 | B13: 10.972675 | C13: 14.918025 | D13: =C13/B13 -> 1.359561365 | F13: =A13+E13^2/2/$M$4 ->  | G13: =$F$5^2*E13^2/D13^(4/3) ->  | H13: =F12-F13 ->  | I13: =(G12+G13)/2 ->  | J13: =IFERROR(H13/(I13-$F$6),0) -> 0 | K13: =J13+K12 -> 0 | O13: =$F$9+K13 -> 0
A14: 2.472675 | B14: 10.94535 | C14: 14.83605 | D14: =C14/B14 -> 1.35546602 | G14: =$F$5^2*E14^2/D14^(4/3) ->  | H14: =F13-F14 ->  | I14: =(G13+G14)/2 ->  | J14: =IFERROR(H14/(I14-$F$6),0) -> 0 | K14: =J14+K13 -> 0 | O14: =$F$9+K14 -> 0
A15: 2.4590125 | B15: 10.918025 | C15: 14.754075 | D15: 1.351350176 | G15: =$F$5^2*E15^2/D15^(4/3) ->  | I15: =(G14+G15)/2 ->  | J15: 0 | K15: =J15+K14 -> 0 | O15: 0
A16: 2.44535 | B16: 10.8907 | C16: 14.6721 | D16: 1.347213678 | J16: 0 | K16: 0 | O16: 0
A17: 2.4316875 | B17: 10.863375 | C17: 14.590125 | D17: 1.343056371 | J17: 0 | K17: 0 | O17: 0
A18: 2.418025 | B18: 10.83605 | C18: 14.50815 | D18: 1.338878097 | J18: 0 | K18: 0 | O18: 0
A19: 2.4043625 | B19: 10.808725 | C19: 14.426175 | D19: 1.334678697 | J19: 0 | K19: 0 | O19: 0
A20: 2.3907 | B20: 10.7814 | C20: 14.3442 | D20: 1.330458011 | G20: =$F$5^2*E20^2/D20^(4/3) ->  | H20: =F19-F20 ->  | I20: =(G19+G20)/2 ->  | J20: 0 | K20: 0 | O20: 0
A21: 2.3770375 | B21: 10.754075 | C21: 14.262225 | D21: 1.326215876 | J21: 0 | K21: 0 | O21: 0
A22: 2.363375 | B22: 10.72675 | C22: 14.18025 | D22: 1.321952129 | J22: 0 | K22: 0 | O22: 0
A23: 2.3497125 | B23: 10.699425 | C23: 14.098275 | D23: 1.317666604 | J23: 0 | K23: 0 | O23: 0
A24: 2.33605 | B24: 10.6721 | C24: 14.0163 | D24: 1.313359133 | F24: =A24+E24^2/2/$M$4 ->  | J24: 0 | K24: 0 | M24: =A24/2*(SQRT(1+8*L24)-1) ->  | O24: 0
A25: 2.3223875 | B25: 10.644775 | C25: 13.934325 | D25: 1.309029547 | F25: =A25+E25^2/2/$M$4 ->  | J25: 0 | K25: 0 | O25: 0
A26: 2.308725 | B26: 10.61745 | C26: 13.85235 | D26: 1.304677677 | J26: 0 | K26: 0 | O26: 0
A27: 2.2950625 | B27: 10.590125 | C27: 13.770375 | D27: 1.300303349 | J27: 0 | K27: 0 | O27: 0
A28: 2.2814 | B28: 10.5628 | C28: 13.6884 | D28: 1.295906388 | J28: 0 | K28: 0 | O28: 0
A29: 2.2677375 | B29: 10.535475 | C29: 13.606425 | D29: 1.29148662 | J29: 0 | K29: 0 | O29: 0
A30: 2.254075 | B30: 10.50815 | C30: 13.52445 | D30: 1.287043866 | J30: 0 | K30: 0 | O30: 0
A31: 2.2404125 | B31: 10.480825 | C31: 13.442475 | D31: 1.282577946 | J31: 0 | K31: 0 | O31: 0
A32: 2.22675 | B32: 10.4535 | C32: 13.3605 | D32: 1.278088678 | J32: 0 | K32: 0 | O32: 0
A33: 2.2130875 | B33: 10.426175 | C33: 13.278525 | D33: 1.27357588 | J33: 0 | K33: 0 | O33: 0
A34: 2.199425 | B34: 10.39885 | C34: 13.19655 | D34: 1.269039365 | J34: 0 | K34: 0 | O34: 0
A35: 2.1857625 | B35: 10.371525 | C35: 13.114575 | D35: 1.264478946 | J35: 0 | K35: 0 | O35: 0
A36: 2.1721 | B36: 10.3442 | C36: 13.0326 | D36: 1.259894434 | J36: 0 | K36: 0 | O36: 0
A37: 2.1584375 | B37: 10.316875 | C37: 12.950625 | D37: 1.255285636 | J37: 0 | K37: 0 | O37: 0
A38: 2.144775 | B38: 10.28955 | C38: 12.86865 | D38: 1.250652361 | J38: 0 | K38: 0 | O38: 0
A39: 2.1311125 | B39: 10.262225 | C39: 12.786675 | D39: 1.245994412 | J39: 0 | K39: 0 | O39: 0
A40: 2.11745 | B40: 10.2349 | C40: 12.7047 | D40: 1.241311591 | J40: 0 | K40: 0 | O40: 0
A41: 2.1037875 | B41: 10.207575 | C41: 12.622725 | D41: 1.236603699 | J41: 0 | K41: 0 | O41: 0
A42: 2.090125 | B42: 10.18025 | C42: 12.54075 | D42: 1.231870534 | J42: 0 | K42: 0 | O42: 0
A43: 2.0764625 | B43: 10.152925 | C43: 12.458775 | D43: 1.227111891 | J43: 0 | K43: 0 | O43: 0
A44: 2.0628 | B44: 10.1256 | C44: 12.3768 | D44: 1.222327566 | J44: 0 | K44: 0 | O44: 0
A45: 2.0491375 | B45: 10.098275 | C45: 12.294825 | D45: 1.217517348 | J45: 0 | K45: 0 | O45: 0
A46: 2.035475 | B46: 10.07095 | C46: 12.21285 | D46: 1.212681028 | J46: 0 | K46: 0 | O46: 0
A47: 2.0218125 | B47: 10.043625 | C47: 12.130875 | D47: 1.207818392 | J47: 0 | K47: 0 | O47: 0
A48: 2.00815 | B48: 10.0163 | C48: 12.0489 | D48: 1.202929225 | J48: 0 | K48: 0 | O48: 0
A49: 1.9944875 | B49: 9.988975 | C49: 11.966925 | D49: 1.19801331 | J49: 0 | K49: 0 | O49: 0
A50: 1.980825 | B50: 9.96165 | C50: 11.88495 | D50: 1.193070425 | J50: 0 | K50: 0 | O50: 0
A51: 1.9671625 | B51: 9.934325 | C51: 11.802975 | D51: 1.188100349 | J51: 0 | K51: 0 | O51: 0
A52: 1.9535 | B52: 9.907 | C52: 11.721 | D52: 1.183102857 | J52: 0 | K52: 0 | O52: 0
